Workbook

Sheet 1st Int
A1: Integral SW measurements | D1: Encoder value at 10 mm gap: | G1: 20.42935
A2: Background has been subtracted
A3: y pos in gap | B3: 0 | C3: mm | P3: 1 | Q3: 1 | R3: 2 | S3: 2 | T3: 3 | U3: 3 | V3: 4 | W3: 4
A4: Gap nominal | B4: 10 | C4: mm | D4: 15 | E4: mm | F4: 20 | G4: mm | H4: 30 | I4: mm | J4: 100 | K4: mm | O4: Gap | P4: Skew Int. | Q4: Norm. Int. | R4: Skew Grad. | S4: Normal Grad. | T4: Skew Sext. | U4: Normal Sext. | V4: Skew Oct. | W4: Normal Oct.
A5: Encoder | B5: ='DF raw data'!B30 -> 20.4316 | D5: ='DF raw data'!G30 -> 25.4693 | F5: ='DF raw data'!L30 -> 30.4903 | H5: ='DF raw data'!Q30 -> 40.5082 | J5: ='DF raw data'!V30 -> 110.5212 | N5: 1 | O5: mm | P5: µTm | Q5: µTm | R5: mT | S5: mT | T5: Tm^2 | U5: Tm^2 | V5: Tm^3 | W5: Tm^3
A6: Gap actual | B6: =B5-$G$1+10 -> 10.00225 | C6: mm | D6: =D5-$G$1+10 -> 15.03995 | E6: mm | F6: =F5-$G$1+10 -> 20.06095 | G6: mm | H6: =H5-$G$1+10 -> 30.07885 | I6: mm | J6: =J5-$G$1+10 -> 100.09185 | K6: mm | N6: 2 | O6: =B4 -> 10 | P6: =INDEX($B$21:$K$24,P$3,$N5*2-1) -> 1.735333333 | Q6: =INDEX($B$21:$M$25,Q$3,$N5*2) -> -5.464333333 | R6: =INDEX($B$21:$M$25,R$3,$N5*2-1) -> -0.5040474456 | S6: =INDEX($B$21:$M$25,S$3,$N5*2) -> -1.724038947 | T6: =INDEX($B$21:$M$25,T$3,$N5*2-1) -> -0.06947642774 | U6: =INDEX($B$21:$M$25,U$3,$N5*2) -> 0.009646561772 | V6: =INDEX($B$21:$M$25,V$3,$N5*2-1) -> -1.991474845 | W6: =INDEX($B$21:$M$25,W$3,$N5*2) -> 4.592924437
A7: x pos [m] | B7: Ix [µTm] | C7: Iy [µTm] | D7: Ix [µTm] | E7: Iy [µTm] | F7: Ix [µTm] | G7: Iy [µTm] | H7: Ix [µTm] | I7: Iy [µTm] | J7: Ix [µTm] | K7: Iy [µTm] | N7: 3 | O7: =D4 -> 15 | P7: =INDEX($B$21:$K$24,P$3,$N6*2-1) -> 0.2401666667 | Q7: =INDEX($B$21:$M$25,Q$3,$N6*2) -> -4.746666667 | R7: =INDEX($B$21:$M$25,R$3,$N6*2-1) -> -0.4684764763 | S7: =INDEX($B$21:$M$25,S$3,$N6*2) -> -0.851360237 | T7: =INDEX($B$21:$M$25,T$3,$N6*2-1) -> -0.01490712413 | U7: =INDEX($B$21:$M$25,U$3,$N6*2) -> -0.005603729604 | V7: =INDEX($B$21:$M$25,V$3,$N6*2-1) -> -5.541421426 | W7: =INDEX($B$21:$M$25,W$3,$N6*2) -> 3.28353244
A8: ='DF raw data'!A43/1000 -> -0.01 | B8: =('DF raw data'!B43-'DF raw data'!B$14*1000)*1000 -> 2.3821 | C8: =('DF raw data'!C43-'DF raw data'!C$14*1000)*1000 -> 8.033 | D8: =('DF raw data'!G43-'DF raw data'!G$14*1000)*1000 -> 9.8196 | E8: =('DF raw data'!H43-'DF raw data'!H$14*1000)*1000 -> -1.265 | F8: =('DF raw data'!L43-'DF raw data'!L$14*1000)*1000 -> 8.6146 | G8: =('DF raw data'!M43-'DF raw data'!M$14*1000)*1000 -> -5.727 | H8: =('DF raw data'!Q43-'DF raw data'!Q$14*1000)*1000 -> 15.3146 | I8: =('DF raw data'!R43-'DF raw data'!R$14*1000)*1000 -> -9.687 | J8: =('DF raw data'!V43-'DF raw data'!V$14*1000)*1000 -> 5.0574 | K8: =('DF raw data'!W43-'DF raw data'!W$14*1000)*1000 -> -0.548 | N8: 4 | O8: =F4 -> 20 | P8: =INDEX($B$21:$K$24,P$3,$N7*2-1) -> -2.30899 | Q8: =INDEX($B$21:$M$25,Q$3,$N7*2) -> -4.141 | R8: =INDEX($B$21:$M$25,R$3,$N7*2-1) -> -0.6999003613 | S8: =INDEX($B$21:$M$25,S$3,$N7*2) -> -0.5728397436 | T8: =INDEX($B$21:$M$25,T$3,$N7*2-1) -> -0.001101972611 | U8: =INDEX($B$21:$M$25,U$3,$N7*2) -> -0.02984965035 | V8: =INDEX($B$21:$M$25,V$3,$N7*2-1) -> -2.465831876 | W8: =INDEX($B$21:$M$25,W$3,$N7*2) -> 3.549970862
A9: ='DF raw data'!A44/1000 -> -0.008 | B9: =('DF raw data'!B44-'DF raw data'!B$14*1000)*1000 -> 5.777 | C9: =('DF raw data'!C44-'DF raw data'!C$14*1000)*1000 -> 6.459 | D9: =('DF raw data'!G44-'DF raw data'!G$14*1000)*1000 -> 5.4895 | E9: =('DF raw data'!H44-'DF raw data'!H$14*1000)*1000 -> 0.274 | F9: =('DF raw data'!L44-'DF raw data'!L$14*1000)*1000 -> 3.2886 | G9: =('DF raw data'!M44-'DF raw data'!M$14*1000)*1000 -> -0.881 | H9: =('DF raw data'!Q44-'DF raw data'!Q$14*1000)*1000 -> 3.3708 | I9: =('DF raw data'!R44-'DF raw data'!R$14*1000)*1000 -> -3.925 | J9: =('DF raw data'!V44-'DF raw data'!V$14*1000)*1000 -> 1.8871 | K9: =('DF raw data'!W44-'DF raw data'!W$14*1000)*1000 -> 2.143 | N9: 5 | O9: =H4 -> 30 | P9: =INDEX($B$21:$K$24,P$3,$N8*2-1) -> -2.179666667 | Q9: =INDEX($B$21:$M$25,Q$3,$N8*2) -> -3.070333333 | R9: =INDEX($B$21:$M$25,R$3,$N8*2-1) -> -0.494995742 | S9: =INDEX($B$21:$M$25,S$3,$N8*2) -> -0.08151757964 | T9: =INDEX($B$21:$M$25,T$3,$N8*2-1) -> 0.03173730186 | U9: =INDEX($B$21:$M$25,U$3,$N8*2) -> -0.02750262238 | V9: =INDEX($B$21:$M$25,V$3,$N8*2-1) -> -6.207780692 | W9: =INDEX($B$21:$M$25,W$3,$N8*2) -> 3.492011461
A10: ='DF raw data'!A45/1000 -> -0.006 | B10: =('DF raw data'!B45-'DF raw data'!B$14*1000)*1000 -> 10.1846 | C10: =('DF raw data'!C45-'DF raw data'!C$14*1000)*1000 -> 1.737 | D10: =('DF raw data'!G45-'DF raw data'!G$14*1000)*1000 -> 7.1972 | E10: =('DF raw data'!H45-'DF raw data'!H$14*1000)*1000 -> -2.935 | F10: =('DF raw data'!L45-'DF raw data'!L$14*1000)*1000 -> 5.2225 | G10: =('DF raw data'!M45-'DF raw data'!M$14*1000)*1000 -> -4.681 | H10: =('DF raw data'!Q45-'DF raw data'!Q$14*1000)*1000 -> 5.8882 | I10: =('DF raw data'!R45-'DF raw data'!R$14*1000)*1000 -> -4.053 | J10: =('DF raw data'!V45-'DF raw data'!V$14*1000)*1000 -> 9.4946 | K10: =('DF raw data'!W45-'DF raw data'!W$14*1000)*1000 -> -1.777 | N10: 6 | O10: =J4 -> 100 | P10: =INDEX($B$21:$K$24,P$3,$N9*2-1) -> 3.866366667 | Q10: =INDEX($B$21:$M$25,Q$3,$N9*2) -> 2.297666667 | R10: =INDEX($B$21:$M$25,R$3,$N9*2-1) -> -0.8889510936 | S10: =INDEX($B$21:$M$25,S$3,$N9*2) -> 0.1588215812 | T10: =INDEX($B$21:$M$25,T$3,$N9*2-1) -> -0.002691614219 | U10: =INDEX($B$21:$M$25,U$3,$N9*2) -> -0.0196780303 | V10: =INDEX($B$21:$M$25,V$3,$N9*2-1) -> 9.096150447 | W10: =INDEX($B$21:$M$25,W$3,$N9*2) -> -0.3698766511
A11: ='DF raw data'!A46/1000 -> -0.004 | B11: =('DF raw data'!B46-'DF raw data'!B$14*1000)*1000 -> 5.5948 | C11: =('DF raw data'!C46-'DF raw data'!C$14*1000)*1000 -> 1.095 | D11: =('DF raw data'!G46-'DF raw data'!G$14*1000)*1000 -> 2.7335 | E11: =('DF raw data'!H46-'DF raw data'!H$14*1000)*1000 -> -3.7 | F11: =('DF raw data'!L46-'DF raw data'!L$14*1000)*1000 -> 3.9977 | G11: =('DF raw data'!M46-'DF raw data'!M$14*1000)*1000 -> -0.561 | H11: =('DF raw data'!Q46-'DF raw data'!Q$14*1000)*1000 -> 4.7112 | I11: =('DF raw data'!R46-'DF raw data'!R$14*1000)*1000 -> -4.457 | J11: =('DF raw data'!V46-'DF raw data'!V$14*1000)*1000 -> 8.8896 | K11: =('DF raw data'!W46-'DF raw data'!W$14*1000)*1000 -> 4.94
A12: ='DF raw data'!A47/1000 -> -0.002 | B12: =('DF raw data'!B47-'DF raw data'!B$14*1000)*1000 -> 3.9676 | C12: =('DF raw data'!C47-'DF raw data'!C$14*1000)*1000 -> 2.655 | D12: =('DF raw data'!G47-'DF raw data'!G$14*1000)*1000 -> 1.6003 | E12: =('DF raw data'!H47-'DF raw data'!H$14*1000)*1000 -> -1.193 | F12: =('DF raw data'!L47-'DF raw data'!L$14*1000)*1000 -> -1.2275 | G12: =('DF raw data'!M47-'DF raw data'!M$14*1000)*1000 -> -4.267 | H12: =('DF raw data'!Q47-'DF raw data'!Q$14*1000)*1000 -> 0.3575 | I12: =('DF raw data'!R47-'DF raw data'!R$14*1000)*1000 -> -2.256 | J12: =('DF raw data'!V47-'DF raw data'!V$14*1000)*1000 -> 2.8078 | K12: =('DF raw data'!W47-'DF raw data'!W$14*1000)*1000 -> 4.357 | O12: Max 10-30mm | P12: =MAX(ABS(MAX(P6:P9)),ABS(MIN(P6:P9))) -> 2.30899 | Q12: =MAX(ABS(MAX(Q6:Q9)),ABS(MIN(Q6:Q9))) -> 5.464333333 | R12: =MAX(ABS(MAX(R6:R9)),ABS(MIN(R6:R9))) -> 0.6999003613 | S12: 1.724038947 | T12: 0.06947642774 | U12: 0.02984965035 | V12: 6.207780692 | W12: 4.592924437
A13: ='DF raw data'!A48/1000 -> 0 | B13: =('DF raw data'!B48-'DF raw data'!B$14*1000)*1000 -> 0.3622 | C13: =('DF raw data'!C48-'DF raw data'!C$14*1000)*1000 -> -8.535 | D13: =('DF raw data'!G48-'DF raw data'!G$14*1000)*1000 -> -0.9076 | E13: =('DF raw data'!H48-'DF raw data'!H$14*1000)*1000 -> -6.403 | F13: =('DF raw data'!L48-'DF raw data'!L$14*1000)*1000 -> -3.8075 | G13: =('DF raw data'!M48-'DF raw data'!M$14*1000)*1000 -> -3.311 | H13: =('DF raw data'!Q48-'DF raw data'!Q$14*1000)*1000 -> -1.3947 | I13: =('DF raw data'!R48-'DF raw data'!R$14*1000)*1000 -> -3.45 | J13: =('DF raw data'!V48-'DF raw data'!V$14*1000)*1000 -> 2.9497 | K13: =('DF raw data'!W48-'DF raw data'!W$14*1000)*1000 -> -0.459 | O13: Max change 10-30mm | P13: =MAX(P6:P9)-MIN(P6:P9) -> 4.044323333 | Q13: =MAX(Q6:Q9)-MIN(Q6:Q9) -> 2.394
A14: ='DF raw data'!A49/1000 -> 0.002 | B14: =('DF raw data'!B49-'DF raw data'!B$14*1000)*1000 -> 0.8762 | C14: =('DF raw data'!C49-'DF raw data'!C$14*1000)*1000 -> -10.513 | D14: =('DF raw data'!G49-'DF raw data'!G$14*1000)*1000 -> 0.0278 | E14: =('DF raw data'!H49-'DF raw data'!H$14*1000)*1000 -> -6.644 | F14: =('DF raw data'!L49-'DF raw data'!L$14*1000)*1000 -> -1.89197 | G14: =('DF raw data'!M49-'DF raw data'!M$14*1000)*1000 -> -4.845 | H14: =('DF raw data'!Q49-'DF raw data'!Q$14*1000)*1000 -> -5.5018 | I14: =('DF raw data'!R49-'DF raw data'!R$14*1000)*1000 -> -3.505 | J14: =('DF raw data'!V49-'DF raw data'!V$14*1000)*1000 -> 5.8416 | K14: =('DF raw data'!W49-'DF raw data'!W$14*1000)*1000 -> 2.995
A15: ='DF raw data'!A50/1000 -> 0.004 | B15: =('DF raw data'!B50-'DF raw data'!B$14*1000)*1000 -> 1.8357 | C15: =('DF raw data'!C50-'DF raw data'!C$14*1000)*1000 -> -13.172 | D15: =('DF raw data'!G50-'DF raw data'!G$14*1000)*1000 -> 0.3957 | E15: =('DF raw data'!H50-'DF raw data'!H$14*1000)*1000 -> -11.527 | F15: =('DF raw data'!L50-'DF raw data'!L$14*1000)*1000 -> -3.5375 | G15: =('DF raw data'!M50-'DF raw data'!M$14*1000)*1000 -> -8.079 | H15: =('DF raw data'!Q50-'DF raw data'!Q$14*1000)*1000 -> -1.79812 | I15: =('DF raw data'!R50-'DF raw data'!R$14*1000)*1000 -> -5.64 | J15: =('DF raw data'!V50-'DF raw data'!V$14*1000)*1000 -> 0.3269 | K15: =('DF raw data'!W50-'DF raw data'!W$14*1000)*1000 -> 4.309 | O15: Imax Limit (±): | P15: 20 | Q15: 20
A16: ='DF raw data'!A51/1000 -> 0.006 | B16: =('DF raw data'!B51-'DF raw data'!B$14*1000)*1000 -> 4.2121 | C16: =('DF raw data'!C51-'DF raw data'!C$14*1000)*1000 -> -14.45 | D16: =('DF raw data'!G51-'DF raw data'!G$14*1000)*1000 -> -2.02045 | E16: =('DF raw data'!H51-'DF raw data'!H$14*1000)*1000 -> -10.148 | F16: =('DF raw data'!L51-'DF raw data'!L$14*1000)*1000 -> -5.0616 | G16: =('DF raw data'!M51-'DF raw data'!M$14*1000)*1000 -> -9.294 | H16: =('DF raw data'!Q51-'DF raw data'!Q$14*1000)*1000 -> -0.4082 | I16: =('DF raw data'!R51-'DF raw data'!R$14*1000)*1000 -> -1.941 | J16: =('DF raw data'!V51-'DF raw data'!V$14*1000)*1000 -> -2.59918 | K16: =('DF raw data'!W51-'DF raw data'!W$14*1000)*1000 -> 3.582 | O16: Limits (±): | P16: 20 | Q16: =P16 -> 20
A17: ='DF raw data'!A52/1000 -> 0.008 | B17: =('DF raw data'!B52-'DF raw data'!B$14*1000)*1000 -> -5.4962 | C17: =('DF raw data'!C52-'DF raw data'!C$14*1000)*1000 -> -14.309 | D17: =('DF raw data'!G52-'DF raw data'!G$14*1000)*1000 -> -8.8104 | E17: =('DF raw data'!H52-'DF raw data'!H$14*1000)*1000 -> -9.024 | F17: =('DF raw data'!L52-'DF raw data'!L$14*1000)*1000 -> -8.9007 | G17: =('DF raw data'!M52-'DF raw data'!M$14*1000)*1000 -> -4.531 | H17: =('DF raw data'!Q52-'DF raw data'!Q$14*1000)*1000 -> -9.4391 | I17: =('DF raw data'!R52-'DF raw data'!R$14*1000)*1000 -> -1.969 | J17: =('DF raw data'!V52-'DF raw data'!V$14*1000)*1000 -> 2.8748 | K17: =('DF raw data'!W52-'DF raw data'!W$14*1000)*1000 -> 2.979 | O17: ΔI Limits (±): | P17: 15 | Q17: =P17 -> 15
A18: ='DF raw data'!A53/1000 -> 0.01 | B18: =('DF raw data'!B53-'DF raw data'!B$14*1000)*1000 -> -11.3109 | C18: =('DF raw data'!C53-'DF raw data'!C$14*1000)*1000 -> -18.769 | D18: =('DF raw data'!G53-'DF raw data'!G$14*1000)*1000 -> -9.9334 | E18: =('DF raw data'!H53-'DF raw data'!H$14*1000)*1000 -> -12.451 | F18: =('DF raw data'!L53-'DF raw data'!L$14*1000)*1000 -> -10.8371 | G18: =('DF raw data'!M53-'DF raw data'!M$14*1000)*1000 -> -11 | H18: =('DF raw data'!Q53-'DF raw data'!Q$14*1000)*1000 -> -8.1116 | I18: =('DF raw data'!R53-'DF raw data'!R$14*1000)*1000 -> -4.443 | J18: =('DF raw data'!V53-'DF raw data'!V$14*1000)*1000 -> 3.7244 | K18: =('DF raw data'!W53-'DF raw data'!W$14*1000)*1000 -> 1.922
A19: DF indice | B19: =#REF! ->  | D19: =#REF! ->  | F19: =#REF! ->  | H19: =#REF! ->  | J19: =#REF! -> 
A21: Average dipole [µTm] | B21: =AVERAGE(B12:B14) -> 1.735333333 | C21: =AVERAGE(C12:C14) -> -5.464333333 | D21: =AVERAGE(D12:D14) -> 0.2401666667 | E21: -4.746666667 | F21: -2.30899 | G21: -4.141 | H21: -2.179666667 | I21: -3.070333333 | J21: 3.866366667 | K21: 2.297666667 | N21: Center dipole values: average of 3 points x = -2 to x = 2mm
A22: Gradient [mT] | B22: =INDEX(LINEST(B$8:B$18,$A$8:$A$18^{1,2,3},TRUE,TRUE),1,3)/1000 -> -0.5040474456 | C22: =INDEX(LINEST(C$8:C$18,$A$8:$A$18^{1,2,3},TRUE,TRUE),1,3)/1000 -> -1.724038947 | D22: =INDEX(LINEST(D$8:D$18,$A$8:$A$18^{1,2,3},TRUE,TRUE),1,3)/1000 -> -0.4684764763 | E22: =INDEX(LINEST(E$8:E$18,$A$8:$A$18^{1,2,3},TRUE,TRUE),1,3)/1000 -> -0.851360237 | F22: =INDEX(LINEST(F$8:F$18,$A$8:$A$18^{1,2,3},TRUE,TRUE),1,3)/1000 -> -0.6999003613 | G22: =INDEX(LINEST(G$8:G$18,$A$8:$A$18^{1,2,3},TRUE,TRUE),1,3)/1000 -> -0.5728397436 | H22: =INDEX(LINEST(H$8:H$18,$A$8:$A$18^{1,2,3},TRUE,TRUE),1,3)/1000 -> -0.494995742 | I22: =INDEX(LINEST(I$8:I$18,$A$8:$A$18^{1,2,3},TRUE,TRUE),1,3)/1000 -> -0.08151757964 | J22: =INDEX(LINEST(J$8:J$18,$A$8:$A$18^{1,2,3},TRUE,TRUE),1,3)/1000 -> -0.8889510936 | K22: =INDEX(LINEST(K$8:K$18,$A$8:$A$18^{1,2,3},TRUE,TRUE),1,3)/1000 -> 0.1588215812
A23: Sextupole [Tm^2] | B23: =INDEX(LINEST(B$8:B$18,$A$8:$A$18^{1,2,3},TRUE,TRUE),1,2)/1000000 -> -0.06947642774 | C23: =INDEX(LINEST(C$8:C$18,$A$8:$A$18^{1,2,3},TRUE,TRUE),1,2)/1000000 -> 0.009646561772 | D23: =INDEX(LINEST(D$8:D$18,$A$8:$A$18^{1,2,3},TRUE,TRUE),1,2)/1000000 -> -0.01490712413 | E23: =INDEX(LINEST(E$8:E$18,$A$8:$A$18^{1,2,3},TRUE,TRUE),1,2)/1000000 -> -0.005603729604 | F23: =INDEX(LINEST(F$8:F$18,$A$8:$A$18^{1,2,3},TRUE,TRUE),1,2)/1000000 -> -0.001101972611 | G23: =INDEX(LINEST(G$8:G$18,$A$8:$A$18^{1,2,3},TRUE,TRUE),1,2)/1000000 -> -0.02984965035 | H23: =INDEX(LINEST(H$8:H$18,$A$8:$A$18^{1,2,3},TRUE,TRUE),1,2)/1000000 -> 0.03173730186 | I23: =INDEX(LINEST(I$8:I$18,$A$8:$A$18^{1,2,3},TRUE,TRUE),1,2)/1000000 -> -0.02750262238 | J23: =INDEX(LINEST(J$8:J$18,$A$8:$A$18^{1,2,3},TRUE,TRUE),1,2)/1000000 -> -0.002691614219 | K23: =INDEX(LINEST(K$8:K$18,$A$8:$A$18^{1,2,3},TRUE,TRUE),1,2)/1000000 -> -0.0196780303
A24: Octupole [Tm^3] | B24: =INDEX(LINEST(B$8:B$18,$A$8:$A$18^{1,2,3},TRUE,TRUE),1,1)/1000000 -> -1.991474845 | C24: =INDEX(LINEST(C$8:C$18,$A$8:$A$18^{1,2,3},TRUE,TRUE),1,1)/1000000 -> 4.592924437 | D24: =INDEX(LINEST(D$8:D$18,$A$8:$A$18^{1,2,3},TRUE,TRUE),1,1)/1000000 -> -5.541421426 | E24: =INDEX(LINEST(E$8:E$18,$A$8:$A$18^{1,2,3},TRUE,TRUE),1,1)/1000000 -> 3.28353244 | F24: =INDEX(LINEST(F$8:F$18,$A$8:$A$18^{1,2,3},TRUE,TRUE),1,1)/1000000 -> -2.465831876 | G24: =INDEX(LINEST(G$8:G$18,$A$8:$A$18^{1,2,3},TRUE,TRUE),1,1)/1000000 -> 3.549970862 | H24: =INDEX(LINEST(H$8:H$18,$A$8:$A$18^{1,2,3},TRUE,TRUE),1,1)/1000000 -> -6.207780692 | I24: =INDEX(LINEST(I$8:I$18,$A$8:$A$18^{1,2,3},TRUE,TRUE),1,1)/1000000 -> 3.492011461 | J24: =INDEX(LINEST(J$8:J$18,$A$8:$A$18^{1,2,3},TRUE,TRUE),1,1)/1000000 -> 9.096150447 | K24: =INDEX(LINEST(K$8:K$18,$A$8:$A$18^{1,2,3},TRUE,TRUE),1,1)/1000000 -> -0.3698766511

Sheet 2nd Int
A1: 2nd Integral SW measurements
A2: Background has been subtracted | O2: Center values: average of 3 points x = -2 to x = 2
A3: y pos | B3: ='1st Int'!B3 -> 0 | C3: mm
A4: Gap nominal | B4: ='1st Int'!B4 -> 10 | C4: mm | D4: ='1st Int'!D4 -> 15 | E4: mm | F4: ='1st Int'!F4 -> 20 | G4: mm | H4: ='1st Int'!H4 -> 30 | I4: mm | J4: ='1st Int'!J4 -> 100 | K4: mm | O4: Gap | P4: Skew 2. Int. | Q4: Norm. 2. Int.
A5: Encoder | B5: ='1st Int'!B5 -> 20.4316 | D5: ='1st Int'!D5 -> 25.4693 | F5: ='1st Int'!F5 -> 30.4903 | H5: ='1st Int'!H5 -> 40.5082 | J5: ='1st Int'!J5 -> 110.5212 | O5: mm | P5: µTm^2 | Q5: µTm^2
A6: Gap actual | B6: =B5-'1st Int'!$G$1+10 -> 10.00225 | C6: mm | D6: =D5-'1st Int'!$G$1+10 -> 15.03995 | E6: mm | F6: =F5-'1st Int'!$G$1+10 -> 20.06095 | G6: mm | H6: =H5-'1st Int'!$G$1+10 -> 30.07885 | I6: mm | J6: =J5-'1st Int'!$G$1+10 -> 100.09185 | K6: mm | O6: =B4 -> 10 | P6: =B22 -> 7.8728 | Q6: =C22 -> -35.7156
A7: ='1st Int'!A7 -> x pos [m] | B7: Jx [muTm^2] | C7: Jy [muTm^2] | D7: Jx [muTm^2] | E7: Jy [muTm^2] | F7: Jx [muTm^2] | G7: Jy [muTm^2] | H7: Jx [muTm^2] | I7: Jy [muTm^2] | J7: Jx [muTm^2] | K7: Jy [muTm^2] | O7: =D4 -> 15 | P7: =D22 -> 4.264233333 | Q7: =E22 -> -26.66293333
A8: ='DF raw data'!A43/1000 -> -0.01 | B8: =('DF raw data'!D43-'DF raw data'!D$14*1000^2) -> -0.08332 | C8: =('DF raw data'!E43-'DF raw data'!E$14*1000^2) -> -11.24093333 | D8: =('DF raw data'!I43-'DF raw data'!I$14*1000^2) -> 15.6275 | E8: =('DF raw data'!J43-'DF raw data'!J$14*1000^2) -> -24.84193333 | F8: =('DF raw data'!N43-'DF raw data'!N$14*1000^2) -> 8.8182 | G8: =('DF raw data'!O43-'DF raw data'!O$14*1000^2) -> -30.42693333 | H8: =('DF raw data'!S43-'DF raw data'!S$14*1000^2) -> 24.2555 | I8: =('DF raw data'!T43-'DF raw data'!T$14*1000^2) -> -30.48193333 | J8: =('DF raw data'!X43-'DF raw data'!X$14*1000^2) -> 10.0492 | K8: =('DF raw data'!Y43-'DF raw data'!Y$14*1000^2) -> -17.21893333 | O8: =F4 -> 20 | P8: =F22 -> -1.549726667 | Q8: =G22 -> -23.3426
A9: ='DF raw data'!A44/1000 -> -0.008 | B9: =('DF raw data'!D44-'DF raw data'!D$14*1000^2) -> -0.29977 | C9: =('DF raw data'!E44-'DF raw data'!E$14*1000^2) -> -22.85193333 | D9: =('DF raw data'!I44-'DF raw data'!I$14*1000^2) -> 10.4595 | E9: =('DF raw data'!J44-'DF raw data'!J$14*1000^2) -> -20.05193333 | F9: =('DF raw data'!N44-'DF raw data'!N$14*1000^2) -> 4.9665 | G9: =('DF raw data'!O44-'DF raw data'!O$14*1000^2) -> -26.55993333 | H9: =('DF raw data'!S44-'DF raw data'!S$14*1000^2) -> 4.6696 | I9: =('DF raw data'!T44-'DF raw data'!T$14*1000^2) -> -15.29693333 | J9: =('DF raw data'!X44-'DF raw data'!X$14*1000^2) -> 3.3601 | K9: =('DF raw data'!Y44-'DF raw data'!Y$14*1000^2) -> -13.60393333 | O9: =H4 -> 30 | P9: =H22 -> 1.331566667 | Q9: =I22 -> -18.98526667
A10: ='DF raw data'!A45/1000 -> -0.006 | B10: =('DF raw data'!D45-'DF raw data'!D$14*1000^2) -> 10.2821 | C10: =('DF raw data'!E45-'DF raw data'!E$14*1000^2) -> -15.38593333 | D10: =('DF raw data'!I45-'DF raw data'!I$14*1000^2) -> 10.5915 | E10: =('DF raw data'!J45-'DF raw data'!J$14*1000^2) -> -24.14293333 | F10: =('DF raw data'!N45-'DF raw data'!N$14*1000^2) -> 6.9215 | G10: =('DF raw data'!O45-'DF raw data'!O$14*1000^2) -> -18.34993333 | H10: =('DF raw data'!S45-'DF raw data'!S$14*1000^2) -> 12.0935 | I10: =('DF raw data'!T45-'DF raw data'!T$14*1000^2) -> -16.21593333 | J10: =('DF raw data'!X45-'DF raw data'!X$14*1000^2) -> 21.9735 | K10: =('DF raw data'!Y45-'DF raw data'!Y$14*1000^2) -> -11.43093333 | O10: =J4 -> 100 | P10: =J22 -> 2.698903333 | Q10: =K22 -> -9.469933333
A11: ='DF raw data'!A46/1000 -> -0.004 | B11: =('DF raw data'!D46-'DF raw data'!D$14*1000^2) -> 11.0795 | C11: =('DF raw data'!E46-'DF raw data'!E$14*1000^2) -> -23.26793333 | D11: =('DF raw data'!I46-'DF raw data'!I$14*1000^2) -> 2.5776 | E11: =('DF raw data'!J46-'DF raw data'!J$14*1000^2) -> -25.41993333 | F11: =('DF raw data'!N46-'DF raw data'!N$14*1000^2) -> 9.3021 | G11: =('DF raw data'!O46-'DF raw data'!O$14*1000^2) -> -19.28893333 | H11: =('DF raw data'!S46-'DF raw data'!S$14*1000^2) -> 8.0764 | I11: =('DF raw data'!T46-'DF raw data'!T$14*1000^2) -> -25.68993333 | J11: =('DF raw data'!X46-'DF raw data'!X$14*1000^2) -> 18.6085 | K11: =('DF raw data'!Y46-'DF raw data'!Y$14*1000^2) -> -7.299933333 | O11: 10-30 | P11: =MAX(ABS(MAX(P6:P9)),ABS(MIN(P6:P9))) -> 7.8728 | Q11: =MAX(ABS(MAX(Q6:Q9)),ABS(MIN(Q6:Q9))) -> 35.7156
A12: ='DF raw data'!A47/1000 -> -0.002 | B12: =('DF raw data'!D47-'DF raw data'!D$14*1000^2) -> 12.6545 | C12: =('DF raw data'!E47-'DF raw data'!E$14*1000^2) -> -22.17293333 | D12: =('DF raw data'!I47-'DF raw data'!I$14*1000^2) -> 11.5805 | E12: =('DF raw data'!J47-'DF raw data'!J$14*1000^2) -> -19.99393333 | F12: =('DF raw data'!N47-'DF raw data'!N$14*1000^2) -> -2.4133 | G12: =('DF raw data'!O47-'DF raw data'!O$14*1000^2) -> -23.55793333 | H12: =('DF raw data'!S47-'DF raw data'!S$14*1000^2) -> 4.4329 | I12: =('DF raw data'!T47-'DF raw data'!T$14*1000^2) -> -25.44493333 | J12: =('DF raw data'!X47-'DF raw data'!X$14*1000^2) -> 1.30256 | K12: =('DF raw data'!Y47-'DF raw data'!Y$14*1000^2) -> -3.633933333 | O12: Limits (±): | P12: 60 | Q12: 60
A13: ='DF raw data'!A48/1000 -> 0 | B13: =('DF raw data'!D48-'DF raw data'!D$14*1000^2) -> 2.1535 | C13: =('DF raw data'!E48-'DF raw data'!E$14*1000^2) -> -41.56893333 | D13: =('DF raw data'!I48-'DF raw data'!I$14*1000^2) -> -2.7937 | E13: =('DF raw data'!J48-'DF raw data'!J$14*1000^2) -> -31.60793333 | F13: =('DF raw data'!N48-'DF raw data'!N$14*1000^2) -> -3.0092 | G13: =('DF raw data'!O48-'DF raw data'!O$14*1000^2) -> -20.65593333 | H13: =('DF raw data'!S48-'DF raw data'!S$14*1000^2) -> 8.156 | I13: =('DF raw data'!T48-'DF raw data'!T$14*1000^2) -> -18.85393333 | J13: =('DF raw data'!X48-'DF raw data'!X$14*1000^2) -> 0.03075 | K13: =('DF raw data'!Y48-'DF raw data'!Y$14*1000^2) -> -15.43693333
A14: ='DF raw data'!A49/1000 -> 0.002 | B14: =('DF raw data'!D49-'DF raw data'!D$14*1000^2) -> 8.8104 | C14: =('DF raw data'!E49-'DF raw data'!E$14*1000^2) -> -43.40493333 | D14: =('DF raw data'!I49-'DF raw data'!I$14*1000^2) -> 4.0059 | E14: =('DF raw data'!J49-'DF raw data'!J$14*1000^2) -> -28.38693333 | F14: =('DF raw data'!N49-'DF raw data'!N$14*1000^2) -> 0.77332 | G14: =('DF raw data'!O49-'DF raw data'!O$14*1000^2) -> -25.81393333 | H14: =('DF raw data'!S49-'DF raw data'!S$14*1000^2) -> -8.5942 | I14: =('DF raw data'!T49-'DF raw data'!T$14*1000^2) -> -12.65693333 | J14: =('DF raw data'!X49-'DF raw data'!X$14*1000^2) -> 6.7634 | K14: =('DF raw data'!Y49-'DF raw data'!Y$14*1000^2) -> -9.338933333
A15: ='DF raw data'!A50/1000 -> 0.004 | B15: =('DF raw data'!D50-'DF raw data'!D$14*1000^2) -> 7.4276 | C15: =('DF raw data'!E50-'DF raw data'!E$14*1000^2) -> -39.87493333 | D15: =('DF raw data'!I50-'DF raw data'!I$14*1000^2) -> 6.3803 | E15: =('DF raw data'!J50-'DF raw data'!J$14*1000^2) -> -33.05093333 | F15: =('DF raw data'!N50-'DF raw data'!N$14*1000^2) -> 0.191 | G15: =('DF raw data'!O50-'DF raw data'!O$14*1000^2) -> -25.83193333 | H15: =('DF raw data'!S50-'DF raw data'!S$14*1000^2) -> -3.021 | I15: =('DF raw data'!T50-'DF raw data'!T$14*1000^2) -> -19.53593333 | J15: =('DF raw data'!X50-'DF raw data'!X$14*1000^2) -> 0.74826 | K15: =('DF raw data'!Y50-'DF raw data'!Y$14*1000^2) -> 2.765066667
A16: ='DF raw data'!A51/1000 -> 0.006 | B16: =('DF raw data'!D51-'DF raw data'!D$14*1000^2) -> 14.6455 | C16: =('DF raw data'!E51-'DF raw data'!E$14*1000^2) -> -39.67893333 | D16: =('DF raw data'!I51-'DF raw data'!I$14*1000^2) -> 3.5869 | E16: =('DF raw data'!J51-'DF raw data'!J$14*1000^2) -> -30.30993333 | F16: =('DF raw data'!N51-'DF raw data'!N$14*1000^2) -> -2.0626 | G16: =('DF raw data'!O51-'DF raw data'!O$14*1000^2) -> -29.76393333 | H16: =('DF raw data'!S51-'DF raw data'!S$14*1000^2) -> -1.6821 | I16: =('DF raw data'!T51-'DF raw data'!T$14*1000^2) -> -18.55193333 | J16: =('DF raw data'!X51-'DF raw data'!X$14*1000^2) -> -3.7762 | K16: =('DF raw data'!Y51-'DF raw data'!Y$14*1000^2) -> -3.914933333
A17: ='DF raw data'!A52/1000 -> 0.008 | B17: =('DF raw data'!D52-'DF raw data'!D$14*1000^2) -> -3.1822 | C17: =('DF raw data'!E52-'DF raw data'!E$14*1000^2) -> -36.69793333 | D17: =('DF raw data'!I52-'DF raw data'!I$14*1000^2) -> -3.9842 | E17: =('DF raw data'!J52-'DF raw data'!J$14*1000^2) -> -26.44193333 | F17: =('DF raw data'!N52-'DF raw data'!N$14*1000^2) -> -7.1255 | G17: =('DF raw data'!O52-'DF raw data'!O$14*1000^2) -> -18.00893333 | H17: =('DF raw data'!S52-'DF raw data'!S$14*1000^2) -> -15.4955 | I17: =('DF raw data'!T52-'DF raw data'!T$14*1000^2) -> -11.72093333 | J17: =('DF raw data'!X52-'DF raw data'!X$14*1000^2) -> 8.3358 | K17: =('DF raw data'!Y52-'DF raw data'!Y$14*1000^2) -> -1.896933333
A18: ='DF raw data'!A53/1000 -> 0.01 | B18: =('DF raw data'!D53-'DF raw data'!D$14*1000^2) -> -2.4996 | C18: =('DF raw data'!E53-'DF raw data'!E$14*1000^2) -> -46.85293333 | D18: =('DF raw data'!I53-'DF raw data'!I$14*1000^2) -> -9.2937 | E18: =('DF raw data'!J53-'DF raw data'!J$14*1000^2) -> -32.60193333 | F18: =('DF raw data'!N53-'DF raw data'!N$14*1000^2) -> -7.6701 | G18: =('DF raw data'!O53-'DF raw data'!O$14*1000^2) -> -31.41393333 | H18: =('DF raw data'!S53-'DF raw data'!S$14*1000^2) -> -8.7607 | I18: =('DF raw data'!T53-'DF raw data'!T$14*1000^2) -> -26.78993333 | J18: =('DF raw data'!X53-'DF raw data'!X$14*1000^2) -> -0.0939 | K18: =('DF raw data'!Y53-'DF raw data'!Y$14*1000^2) -> -13.15493333
A20: DF indice | B20: ='DF raw data'!B8 -> 22 | D20: ='DF raw data'!G8 -> 23 | F20: ='DF raw data'!L8 -> 24 | H20: ='DF raw data'!Q8 -> 25 | J20: ='DF raw data'!V8 -> 26
A22: Average | B22: =AVERAGE(B12:B14) -> 7.8728 | C22: =AVERAGE(C12:C14) -> -35.7156 | D22: 4.264233333 | E22: -26.66293333 | F22: -1.549726667 | G22: -23.3426 | H22: 1.331566667 | I22: -18.98526667 | J22: 2.698903333 | K22: -9.469933333

Sheet DF raw data
A1: Number of header lines | B1: 30 | F1: Number of header lines | G1: 30 | K1: Number of header lines | L1: 30 | P1: Number of header lines | Q1: 30 | U1: Number of header lines | V1: 30
A2: Measured by | B2: Danfysik | F2: Measured by | G2: Danfysik | K2: Measured by | L2: Danfysik | P2: Measured by | Q2: Danfysik | U2: Measured by | V2: Danfysik
A3: Operator | B3: PMHA | F3: Operator | G3: PMHA | K3: Operator | L3: PMHA | P3: Operator | Q3: PMHA | U3: Operator | V3: PMHA
A4: Data-time | B4: 16-07-2024, 14:06:52 | F4: Data-time | G4: 16-07-2024, 14:28:32 | K4: Data-time | L4: 16-07-2024, 14:48:59 | P4: Data-time | Q4: 16-07-2024, 15:07:53 | U4: Data-time | V4: 16-07-2024, 15:27:12
A5: Project | B5: 504313 | F5: Project | G5: 504313 | K5: Project | L5: 504313 | P5: Project | Q5: 504313 | U5: Project | V5: 504313
A6: Magnet type | B6: Dipole | F6: Magnet type | G6: Dipole | K6: Magnet type | L6: Dipole | P6: Magnet type | Q6: Dipole | U6: Magnet type | V6: Dipole
A7: Magnet nr | B7: 2410082 | F7: Magnet nr | G7: 2410082 | K7: Magnet nr | L7: 2410082 | P7: Magnet nr | Q7: 2410082 | U7: Magnet nr | V7: 2410082
A8: Meas. number | B8: 22 | F8: Meas. number | G8: 23 | K8: Meas. number | L8: 24 | P8: Meas. number | Q8: 25 | U8: Meas. number | V8: 26
A9: Add. info | B9: Final measurement | F9: Add. info | G9: Final measurement | K9: Add. info | L9: Final measurement | P9: Add. info | Q9: Final measurement | U9: Add. info | V9: Final measurement
A10: Device | B10: (SWI) STRECHED-WIRE INTEGRAL | F10: Device | G10: (SWI) STRECHED-WIRE INTEGRAL | K10: Device | L10: (SWI) STRECHED-WIRE INTEGRAL | P10: Device | Q10: (SWI) STRECHED-WIRE INTEGRAL | U10: Device | V10: (SWI) STRECHED-WIRE INTEGRAL
A11: Measurement type | B11: (HSI) HORIZONTAL SECOND INTEGRAL LINESCAN | F11: Measurement type | G11: (HSI) HORIZONTAL SECOND INTEGRAL LINESCAN | K11: Measurement type | L11: (HSI) HORIZONTAL SECOND INTEGRAL LINESCAN | P11: Measurement type | Q11: (HSI) HORIZONTAL SECOND INTEGRAL LINESCAN | U11: Measurement type | V11: (HSI) HORIZONTAL SECOND INTEGRAL LINESCAN
A12: PSMODE | B12: (DUM) Magnet power supply not defined | F12: PSMODE | G12: (DUM) Magnet power supply not defined | K12: PSMODE | L12: (DUM) Magnet power supply not defined | P12: PSMODE | Q12: (DUM) Magnet power supply not defined | U12: PSMODE | V12: (DUM) Magnet power supply not defined
A13: Bench ID | B13: ID Tower SW | F13: Bench ID | G13: ID Tower SW | K13: Bench ID | L13: ID Tower SW | P13: Bench ID | Q13: ID Tower SW | U13: Bench ID | V13: ID Tower SW
A14: Background X & Y [Tm] | B14: 2.4264e-06 | C14: -5.4828e-05 | D14: -3.295e-07 | E14: -3.248506667e-05 | F14: Background X & Y [Tm] | G14: 2.4264e-06 | H14: -5.4828e-05 | I14: -3.295e-07 | J14: -3.248506667e-05 | K14: Background X & Y [Tm] | L14: 2.4264e-06 | M14: -5.4828e-05 | N14: -3.295e-07 | O14: -3.248506667e-05 | P14: Background X & Y [Tm] | Q14: 2.4264e-06 | R14: -5.4828e-05 | S14: -3.295e-07 | T14: -3.248506667e-05 | U14: Background X & Y [Tm] | V14: 2.4264e-06 | W14: -5.4828e-05 | X14: -3.295e-07 | Y14: -3.248506667e-05
A15: Background date | B15: 15-07-2024, 11:00:21 | F15: Background date | G15: 15-07-2024, 11:00:21 | K15: Background date | L15: 15-07-2024, 11:00:21 | P15: Background date | Q15: 15-07-2024, 11:00:21 | U15: Background date | V15: 15-07-2024, 11:00:21
A16: DATA | B16: Raw data text file | F16: DATA | G16: Raw data text file | K16: DATA | L16: Raw data text file | P16: DATA | Q16: Raw data text file | U16: DATA | V16: Raw data text file
A17: Number of repetitions | B17: 8 | F17: Number of repetitions | G17: 8 | K17: Number of repetitions | L17: 8 | P17: Number of repetitions | Q17: 8 | U17: Number of repetitions | V17: 8
A18: Number of scans | B18: 1 | F18: Number of scans | G18: 1 | K18: Number of scans | L18: 1 | P18: Number of scans | Q18: 1 | U18: Number of scans | V18: 1
A19: Number of data points | B19: 11 | F19: Number of data points | G19: 11 | K19: Number of data points | L19: 11 | P19: Number of data points | Q19: 11 | U19: Number of data points | V19: 11
A20: Fraction of max scan speed | B20: 0.9 | F20: Fraction of max scan speed | G20: 0.9 | K20: Fraction of max scan speed | L20: 0.9 | P20: Fraction of max scan speed | Q20: 0.9 | U20: Fraction of max scan speed | V20: 0.9
A21: Start position [mm] | B21: -10 | F21: Start position [mm] | G21: -10 | K21: Start position [mm] | L21: -10 | P21: Start position [mm] | Q21: -10 | U21: Start position [mm] | V21: -10
A22: End position [mm] | B22: 10 | F22: End position [mm] | G22: 10 | K22: End position [mm] | L22: 10 | P22: End position [mm] | Q22: 10 | U22: End position [mm] | V22: 10
A23: Scan center [mm] | B23: 74.35 | F23: Scan center [mm] | G23: 74.35 | K23: Scan center [mm] | L23: 74.35 | P23: Scan center [mm] | Q23: 74.35 | U23: Scan center [mm] | V23: 74.35
A24: Transvers X/Y [mm] | B24: -189.5 | F24: Transvers X/Y [mm] | G24: -189.5 | K24: Transvers X/Y [mm] | L24: -189.5 | P24: Transvers X/Y [mm] | Q24: -189.5 | U24: Transvers X/Y [mm] | V24: -189.5
A25: Measurement length [mm] | B25: 6 | F25: Measurement length [mm] | G25: 6 | K25: Measurement length [mm] | L25: 6 | P25: Measurement length [mm] | Q25: 6 | U25: Measurement length [mm] | V25: 6
A26: Wire length [mm] | B26: 1360 | F26: Wire length [mm] | G26: 1360 | K26: Wire length [mm] | L26: 1360 | P26: Wire length [mm] | Q26: 1360 | U26: Wire length [mm] | V26: 1360
A27: Nanovoltmeter range [V] | B27: 0.01 | F27: Nanovoltmeter range [V] | G27: 0.01 | K27: Nanovoltmeter range [V] | L27: 0.01 | P27: Nanovoltmeter range [V] | Q27: 0.01 | U27: Nanovoltmeter range [V] | V27: 0.01
A28: PS-Gap [mm] | B28: 10 | F28: PS-Gap [mm] | G28: 15 | K28: PS-Gap [mm] | L28: 20 | P28: PS-Gap [mm] | Q28: 30 | U28: PS-Gap [mm] | V28: 100
A29: PS-Temperature [C] | B29: 23.8 | F29: PS-Temperature [C] | G29: 23.9 | K29: PS-Temperature [C] | L29: 24.1 | P29: PS-Temperature [C] | Q29: 23.9 | U29: PS-Temperature [C] | V29: 23.9
A30: PS-Encoder | B30: 20.4316 | F30: PS-Encoder | G30: 25.4693 | K30: PS-Encoder | L30: 30.4903 | P30: PS-Encoder | Q30: 40.5082 | U30: PS-Encoder | V30: 110.5212
A33: Monitor-Index | B33: [1,1,4] | F33: Monitor-Index | G33: [1,1,4] | K33: Monitor-Index | L33: [1,1,4] | P33: Monitor-Index | Q33: [1,1,4] | U33: Monitor-Index | V33: [1,1,4]
A36: Set current [A] | B36: Current (DDCT) [A] | C36: Y [mm] | F36: Set current [A] | G36: Current (DDCT) [A] | H36: Y [mm] | K36: Set current [A] | L36: Current (DDCT) [A] | M36: Y [mm] | P36: Set current [A] | Q36: Current (DDCT) [A] | R36: Y [mm] | U36: Set current [A] | V36: Current (DDCT) [A] | W36: Y [mm]
A37: 0 | B37: 0 | C37: 263.85 | F37: 0 | G37: 0 | H37: 263.85 | K37: 0 | L37: 0 | M37: 263.85 | P37: 0 | Q37: 0 | R37: 263.85 | U37: 0 | V37: 0 | W37: 263.85
A39: Measurement-Index | B39: [1,1,11,2] | F39: Measurement-Index | G39: [1,1,11,2] | K39: Measurement-Index | L39: [1,1,11,2] | P39: Measurement-Index | Q39: [1,1,11,2] | U39: Measurement-Index | V39: [1,1,11,2]
A41: X [mm] | B41: Field integral Ix [Tmm] | C41: Field integral Iy [Tmm] | D41: 2. Field integral Vx [Tmm] | E41: 2. Field integral Vy [Tmm] | F41: X [mm] | G41: Field integral Ix [Tmm] | H41: Field integral Iy [Tmm] | I41: 2. Field integral Vx [Tmm] | J41: 2. Field integral Vy [Tmm] | K41: X [mm] | L41: Field integral Ix [Tmm] | M41: Field integral Iy [Tmm] | N41: 2. Field integral Vx [Tmm] | O41: 2. Field integral Vy [Tmm] | P41: X [mm] | Q41: Field integral Ix [Tmm] | R41: Field integral Iy [Tmm] | S41: 2. Field integral Vx [Tmm] | T41: 2. Field integral Vy [Tmm] | U41: X [mm] | V41: Field integral Ix [Tmm] | W41: Field integral Iy [Tmm] | X41: 2. Field integral Vx [Tmm] | Y41: 2. Field integral Vy [Tmm]
A42: [0, 0, 0, 0] | F42: [0, 0, 0, 0] | K42: [0, 0, 0, 0] | P42: [0, 0, 0, 0] | U42: [0, 0, 0, 0]
A43: -10 | B43: 0.0048085 | C43: -0.046795 | D43: -0.41282 | E43: -43.726 | F43: -10 | G43: 0.012246 | H43: -0.056093 | I43: 15.298 | J43: -57.327 | K43: -10 | L43: 0.011041 | M43: -0.060555 | N43: 8.4887 | O43: -62.912 | P43: -10 | Q43: 0.017741 | R43: -0.064515 | S43: 23.926 | T43: -62.967 | U43: -10 | V43: 0.0074838 | W43: -0.055376 | X43: 9.7197 | Y43: -49.704
A44: -8 | B44: 0.0082034 | C44: -0.048369 | D44: -0.62927 | E44: -55.337 | F44: -8 | G44: 0.0079159 | H44: -0.054554 | I44: 10.13 | J44: -52.537 | K44: -8 | L44: 0.005715 | M44: -0.055709 | N44: 4.637 | O44: -59.045 | P44: -8 | Q44: 0.0057972 | R44: -0.058753 | S44: 4.3401 | T44: -47.782 | U44: -8 | V44: 0.0043135 | W44: -0.052685 | X44: 3.0306 | Y44: -46.089
A45: -6 | B45: 0.012611 | C45: -0.053091 | D45: 9.9526 | E45: -47.871 | F45: -6 | G45: 0.0096236 | H45: -0.057763 | I45: 10.262 | J45: -56.628 | K45: -6 | L45: 0.0076489 | M45: -0.059509 | N45: 6.592 | O45: -50.835 | P45: -6 | Q45: 0.0083146 | R45: -0.058881 | S45: 11.764 | T45: -48.701 | U45: -6 | V45: 0.011921 | W45: -0.056605 | X45: 21.644 | Y45: -43.916
A46: -4 | B46: 0.0080212 | C46: -0.053733 | D46: 10.75 | E46: -55.753 | F46: -4 | G46: 0.0051599 | H46: -0.058528 | I46: 2.2481 | J46: -57.905 | K46: -4 | L46: 0.0064241 | M46: -0.055389 | N46: 8.9726 | O46: -51.774 | P46: -4 | Q46: 0.0071376 | R46: -0.059285 | S46: 7.7469 | T46: -58.175 | U46: -4 | V46: 0.011316 | W46: -0.049888 | X46: 18.279 | Y46: -39.785
A47: -2 | B47: 0.006394 | C47: -0.052173 | D47: 12.325 | E47: -54.658 | F47: -2 | G47: 0.0040267 | H47: -0.056021 | I47: 11.251 | J47: -52.479 | K47: -2 | L47: 0.0011989 | M47: -0.059095 | N47: -2.7428 | O47: -56.043 | P47: -2 | Q47: 0.0027839 | R47: -0.057084 | S47: 4.1034 | T47: -57.93 | U47: -2 | V47: 0.0052342 | W47: -0.050471 | X47: 0.97306 | Y47: -36.119
A48: 0 | B48: 0.0027886 | C48: -0.063363 | D48: 1.824 | E48: -74.054 | F48: 0 | G48: 0.0015188 | H48: -0.061231 | I48: -3.1232 | J48: -64.093 | K48: 0 | L48: -0.0013811 | M48: -0.058139 | N48: -3.3387 | O48: -53.141 | P48: 0 | Q48: 0.0010317 | R48: -0.058278 | S48: 7.8265 | T48: -51.339 | U48: 0 | V48: 0.0053761 | W48: -0.055287 | X48: -0.29875 | Y48: -47.922
A49: 2 | B49: 0.0033026 | C49: -0.065341 | D49: 8.4809 | E49: -75.89 | F49: 2 | G49: 0.0024542 | H49: -0.061472 | I49: 3.6764 | J49: -60.872 | K49: 2 | L49: 0.00053443 | M49: -0.059673 | N49: 0.44382 | O49: -58.299 | P49: 2 | Q49: -0.0030754 | R49: -0.058333 | S49: -8.9237 | T49: -45.142 | U49: 2 | V49: 0.008268 | W49: -0.051833 | X49: 6.4339 | Y49: -41.824
A50: 4 | B50: 0.0042621 | C50: -0.068 | D50: 7.0981 | E50: -72.36 | F50: 4 | G50: 0.0028221 | H50: -0.066355 | I50: 6.0508 | J50: -65.536 | K50: 4 | L50: -0.0011111 | M50: -0.062907 | N50: -0.1385 | O50: -58.317 | P50: 4 | Q50: 0.00062828 | R50: -0.060468 | S50: -3.3505 | T50: -52.021 | U50: 4 | V50: 0.0027533 | W50: -0.050519 | X50: 0.41876 | Y50: -29.72
A51: 6 | B51: 0.0066385 | C51: -0.069278 | D51: 14.316 | E51: -72.164 | F51: 6 | G51: 0.00040595 | H51: -0.064976 | I51: 3.2574 | J51: -62.795 | K51: 6 | L51: -0.0026352 | M51: -0.064122 | N51: -2.3921 | O51: -62.249 | P51: 6 | Q51: 0.0020182 | R51: -0.056769 | S51: -2.0116 | T51: -51.037 | U51: 6 | V51: -0.00017278 | W51: -0.051246 | X51: -4.1057 | Y51: -36.4
A52: 8 | B52: -0.0030698 | C52: -0.069137 | D52: -3.5117 | E52: -69.183 | F52: 8 | G52: -0.006384 | H52: -0.063852 | I52: -4.3137 | J52: -58.927 | K52: 8 | L52: -0.0064743 | M52: -0.059359 | N52: -7.455 | O52: -50.494 | P52: 8 | Q52: -0.0070127 | R52: -0.056797 | S52: -15.825 | T52: -44.206 | U52: 8 | V52: 0.0053012 | W52: -0.051849 | X52: 8.0063 | Y52: -34.382
A53: 10 | B53: -0.0088845 | C53: -0.073597 | D53: -2.8291 | E53: -79.338 | F53: 10 | G53: -0.007507 | H53: -0.067279 | I53: -9.6232 | J53: -65.087 | K53: 10 | L53: -0.0084107 | M53: -0.065828 | N53: -7.9996 | O53: -63.899 | P53: 10 | Q53: -0.0056852 | R53: -0.059271 | S53: -9.0902 | T53: -59.275 | U53: 10 | V53: 0.0061508 | W53: -0.052906 | X53: -0.4234 | Y53: -45.64
